bitfinex/quotes_ETHUSD_20250526
["timestamp","ask_amount","ask_price","bid_price","bid_amount"]
[1748219248340,14.29152943,2541.6,2541.4,3.76648894]
[1748219248631,20.40614193,2541.6,2541.4,3.76648894]
[1748219248834,6.29168424,2541.5,2541.4,3.76648894]
[1748219249069,2.357,2541.5,2541.4,3.76648894]
[1748219249325,7.09518424,2541.5,2539.9,7.29795085]
[1748219249452,8.0,2539.0,2536.8,9.07844461]
[1748219249655,12.01415775,2540.0,2535.1,8.79974844]
[1748219249656,3.05730625,2536.9,2535.1,7.61638609]
[1748219249974,2.357,2537.5,2536.3,13.634]
[1748219250289,4.13326709,2537.7,2536.3,13.8382883]
[1748219250451,3.9421875,2536.7,2536.3,13.8382883]
[1748219250650,3.05730625,2536.6,2536.3,13.8382883]
[1748219250866,10.91593519,2536.4,2536.3,13.8382883]
[1748219251073,0.39613723,2537.8,2536.4,0.7672]
[1748219251287,3.05730625,2537.7,2536.5,9.294]
[1748219251578,0.6263159,2536.5,2536.4,10.49994357]
[1748219251777,0.37423898,2537.6,2536.7,0.55]
[1748219251937,0.37423898,2537.6,2536.7,8.0]
[1748219252139,0.32794509,2537.5,2536.9,1.18250978]
[1748219252452,0.32794509,2537.5,2536.4,0.7672]
[1748219252649,0.32794509,2537.5,2537.0,5.367]
[1748219253036,0.37423898,2537.4,2537.0,5.367]
[1748219253260,0.32794509,2537.3,2537.0,5.367]
[1748219253580,0.32794509,2537.3,2537.0,6.3514]
[1748219253937,0.32794509,2537.3,2537.1,0.03941156]
[1748219254139,0.32794509,2537.3,2537.1,0.55]
[1748219254451,0.8311482,2537.2,2537.1,0.55]
[1748219254644,1.15909329,2537.2,2537.1,1.7324524]
[1748219254839,0.90554163,2537.2,2537.1,2.6630329]
[1748219255039,0.17267946,2537.2,2537.1,10.6630329]
[1748219257888,0.17267946,2537.2,2537.1,9.21021121]
[1748219258297,0.17267946,2537.2,2537.1,13.14121121]
[1748219259166,9.98063836,2538.5,2537.8,1.18211591]
[1748219259381,1.98063836,2538.6,2537.8,1.18211591]
[1748219259772,3.5454902,2538.5,2537.3,0.55]
[1748219259969,9.82476152,2538.4,2537.3,0.55]
[1748219260180,6.27917471,2538.4,2537.7,1.18216836]
[1748219260493,6.27917471,2538.4,2537.6,1.18220815]
[1748219260695,6.27917471,2538.0,2537.2,1.18239539]
[1748219260884,6.27917471,2538.0,2537.3,1.18235457]
[1748219261068,8.0,2538.3,2537.2,1.09467863]
[1748219261271,9.23718919,2538.6,2537.3,0.55]
[1748219261476,9.23718919,2538.6,2537.8,1.18208356]
[1748219261670,9.23718919,2538.6,2537.3,3.932]
[1748219261671,3.93937089,2538.5,2537.4,8.0]
[1748219261902,5.14608582,2538.5,2537.8,1.1821233]
[1748219262099,3.93965503,2538.3,2537.5,1.1932]
[1748219262400,5.14607792,2538.5,2537.7,1.18212632]
[1748219262564,3.93958752,2538.4,2537.7,1.18212632]
[1748219263361,10.44387985,2538.6,2537.4,3.932]
[1748219263559,12.4025692,2538.6,2537.9,1.18204119]
[1748219263762,12.4025692,2538.6,2537.4,3.932]
[1748219263763,16.3355692,2538.6,2537.4,3.932]
[1748219264077,12.4025692,2538.6,2537.9,1.18203982]
[1748219264279,12.4025692,2538.6,2538.0,1.18202274]
[1748219264718,1.20669066,2538.6,2537.8,5.375]
[1748219265011,1.20669066,2538.6,2538.5,1.18180027]
[1748219265172,1.20669066,2538.6,2538.5,9.99959085]
[1748219265372,1.98063836,2538.7,2538.6,1.18175372]
[1748219265620,1.98063836,2538.7,2538.6,14.55775372]
[1748219265876,2.08063836,2538.9,2538.8,1.18166062]
[1748219266070,2.08063836,2538.9,2538.8,1.22104503]
[1748219266321,2.08063836,2538.9,2538.7,7.72827567]
[1748219266486,2.08063836,2538.9,2538.8,1.18166062]
[1748219268012,2.44427116,2538.9,2538.8,1.18166062]
[1748219268615,2.44427116,2538.9,2538.8,2.17192487]
[1748219268777,0.4636328,2538.9,2538.8,2.17192487]
[1748219269392,0.4636328,2538.9,2538.8,0.8550875]
[1748219269616,0.4636328,2538.9,2538.8,2.03674812]
[1748219271322,0.4636328,2538.9,2538.8,1.64286125]
[1748219271513,0.4636328,2538.9,2538.8,2.97806786]
[1748219271822,0.4636328,2538.9,2538.8,6.91106786]
[1748219273214,0.4636328,2538.9,2538.8,12.28606786]
[1748219273422,0.4636328,2538.9,2538.8,6.16277375]
[1748219275671,0.4636328,2538.9,2538.8,5.21903206]
[1748219275921,0.4636328,2538.9,2538.8,6.00680581]
[1748219276124,0.4636328,2538.9,2538.8,4.59129339]
[1748219276629,0.4636328,2538.9,2538.8,1.95768416]
[1748219277621,0.02897705,2538.9,2538.8,12.01491221]
[1748219277829,0.02897705,2538.9,2538.8,11.9755326]
[1748219278125,0.02897705,2538.9,2538.8,20.11262219]
[1748219278332,0.02897705,2538.9,2538.8,10.80562219]
[1748219278534,0.02897705,2538.9,2538.8,14.16177375]
[1748219279408,0.02897705,2538.9,2538.8,5.374]
[1748219279608,0.02897705,2538.9,2538.8,6.16177375]
[1748219280831,0.02897705,2538.9,2538.8,10.09377375]
[1748219281409,0.02897705,2538.9,2538.8,8.78777375]
[1748219281623,0.02897705,2538.9,2538.8,18.01877375]
[1748219281947,0.02897705,2538.9,2538.8,6.08677375]
[1748219282139,0.02897705,2538.9,2538.8,4.01749]
[1748219282537,0.02897705,2538.9,2538.8,3.22971625]
[1748219283099,0.02897705,2538.9,2538.8,4.01749]
[1748219283459,0.39276767,2538.9,2538.8,4.01749]
[1748219283752,0.39276767,2538.9,2538.8,7.95049]
[1748219284840,0.02897705,2538.9,2538.8,7.16271625]
[1748219285023,0.65021914,2538.9,2538.8,7.95049]
[1748219285410,0.65021914,2538.9,2538.8,3.22971625]
[1748219285604,0.65021914,2538.9,2538.8,1.38363668]
[1748219286017,0.65021914,2538.9,2538.8,0.59586293]
[1748219287136,1.01445179,2538.9,2538.8,0.59586293]
[1748219287457,1.01445179,2538.9,2538.8,1.38363668]
[1748219288228,1.01445179,2538.9,2538.8,0.59586293]
[1748219288631,1.01445179,2538.9,2538.7,0.78778958]
[1748219288837,1.01445179,2538.9,2538.7,4.72078958]
[1748219289456,3.93893355,2538.8,2538.5,5.299]
[1748219289653,4.30326924,2538.7,2538.5,5.299]
[1748219289963,0.36423265,2538.7,2538.5,5.299]
[1748219290130,0.62124209,2538.6,2538.5,5.299]
[1748219290532,4.56042116,2538.6,2538.5,5.299]
[1748219290767,0.98547474,2538.6,2537.8,0.754]
[1748219290942,3.93946686,2538.5,2537.8,4.687]
[1748219291138,0.98547474,2538.6,2537.9,6.6830519]
[1748219291447,0.62124209,2538.3,2537.9,6.6830519]
[1748219291673,0.36423265,2538.2,2538.0,9.232]
[1748219292279,0.02897705,2538.1,2538.0,9.232]
[1748219292487,0.02897705,2538.1,2538.0,10.02001556]
[1748219293153,0.02897705,2538.1,2538.0,18.02001556]
[1748219293367,0.02897705,2538.1,2538.0,20.15489016]
[1748219294691,0.02897705,2538.1,2538.0,14.08701556]
[1748219294865,0.02897705,2538.1,2538.0,18.02001556]
[1748219296157,3.53504739,2538.1,2538.0,18.57001556]
[1748219296993,3.53504739,2538.1,2538.0,16.87651002]
[1748219297193,3.53504739,2538.1,2538.0,17.66452558]
[1748219297399,3.53504739,2538.1,2538.0,19.6850428]
[1748219297955,2.57482987,2538.9,2538.8,0.78777375]
[1748219298155,2.57482987,2538.9,2538.8,10.01977375]
[1748219298372,0.62124209,2539.2,2539.0,0.78769097]
[1748219298615,0.62124209,2539.2,2539.1,0.82706044]
[1748219298776,2.57482987,2539.3,2539.2,0.78764965]
[1748219299099,2.57482987,2539.3,2539.2,4.95695178]
[1748219301021,2.57482987,2539.3,2539.2,12.95695178]
[1748219301398,0.80463433,2539.3,2539.2,14.33435178]
[1748219301604,3.16902138,2539.7,2539.6,0.78752559]
[1748219301790,0.1,2539.9,2539.8,0.78746357]
[1748219302338,0.1,2539.9,2539.8,10.78627382]
[1748219302487,0.1,2539.9,2539.8,10.74691141]
[1748219302681,0.1,2539.9,2539.8,11.52641141]
[1748219302922,0.1,2539.9,2539.8,12.07641141]
[1748219303999,4.65085208,2540.6,2540.5,0.7872466]
[1748219304188,4.65085208,2540.6,2540.5,10.0192466]
[1748219306391,4.65085208,2540.6,2540.5,11.09989848]
[1748219306620,4.65085208,2540.6,2540.5,19.09989848]
[1748219306897,0.1,2540.9,2540.8,0.78715365]
[1748219310198,0.1,2540.9,2540.8,4.71815365]
[1748219311051,0.1,2540.9,2540.8,0.78715365]
[1748219311226,0.1,2540.9,2540.8,3.931]
[1748219311524,0.5035556,2540.9,2540.8,3.931]
[1748219311708,4.43925235,2540.9,2540.8,3.931]
[1748219312108,0.5035556,2540.9,2540.8,3.931]
[1748219312355,0.1,2540.9,2540.8,3.931]
[1748219312848,0.1,2540.9,2540.6,5.88221083]
[1748219313151,0.1,2540.9,2540.7,3.931]
[1748219313579,4.72972317,2540.7,2540.6,5.095]
[1748219313781,5.21269549,2540.7,2540.6,9.025]
[1748219313981,1.27677232,2540.7,2540.6,9.025]
[1748219315737,0.7938,2540.7,2540.6,9.025]
[1748219316183,4.72972317,2540.7,2540.6,3.93]
[1748219316366,0.7938,2540.7,2540.6,3.93]
[1748219317984,0.7938,2540.7,2540.2,8.494]
[1748219318141,0.7938,2540.7,2540.5,5.094]
[1748219319084,0.1,2540.9,2540.5,5.094]
[1748219319594,0.1,2540.9,2540.8,0.78715365]
[1748219319884,0.1,2540.9,2540.8,4.71715365]
[1748219321510,0.1,2540.9,2540.7,0.78717789]
[1748219321705,0.1,2540.9,2540.6,0.78720262]
[1748219321884,0.1,2540.9,2540.8,9.024]
[1748219322610,0.1,2540.9,2540.8,9.81115365]
[1748219325122,0.1,2540.9,2540.3,0.8071]
[1748219325410,0.1,2540.9,2540.8,5.094]
[1748219325607,0.1,2540.9,2540.7,0.78717943]
[1748219325812,0.1,2540.9,2540.8,9.81115365]
[1748219330777,0.1,2540.9,2540.8,17.81115365]
[1748219332142,0.1,2540.9,2540.8,18.61435365]
[1748219332428,0.1,2540.9,2540.8,21.49597387]
[1748219333511,0.1,2540.9,2540.8,2.72730726]
[1748219333713,0.1,2540.9,2540.8,9.61715365]
[1748219337314,0.1,2540.9,2540.8,18.16715365]
[1748219337855,0.1,2540.9,2540.8,17.61715365]
[1748219338769,0.1,2540.9,2540.8,17.61615365]
[1748219338960,0.1,2540.9,2540.8,19.45648702]
[1748219339564,0.1,2540.9,2540.8,10.62748702]
[1748219339765,0.1,2540.9,2540.8,19.45648702]
[1748219348678,0.1,2540.9,2540.8,20.00648702]
[1748219349759,0.1,2540.9,2540.8,20.80248702]
[1748219350559,0.1,2540.9,2540.8,21.18641793]
[1748219354279,0.8848,2541.9,2541.7,0.7868585]
[1748219354478,0.8848,2541.9,2541.8,3.929]
[1748219354907,0.8848,2541.9,2541.8,4.71584396]
[1748219356000,0.87013,2541.9,2541.8,4.71584396]
[1748219356204,0.87013,2541.9,2541.8,5.75601514]
[1748219356590,0.08533,2541.9,2541.8,5.75601514]
[1748219357109,3.93585551,2540.8,2539.2,4.899]
[1748219357414,8.0,2541.2,2539.7,0.78748141]
[1748219357415,7.06545354,2540.5,2539.7,0.78748141]
[1748219357594,0.7722,2540.0,2539.4,0.78758761]
[1748219357911,0.7722,2540.0,2539.5,3.929]
[1748219358287,0.7829,2540.4,2539.8,0.78744764]
[1748219358487,3.9366201,2540.3,2539.7,0.7874783]
[1748219358694,3.9366201,2540.3,2539.7,2.05912613]
[1748219359408,3.9366201,2540.3,2539.7,2.05913609]
[1748219359608,3.9366201,2540.3,2539.7,0.78748826]
[1748219360002,3.9367098,2540.2,2539.6,0.78750979]
[1748219360390,3.9367098,2540.2,2539.7,0.78749165]
[1748219361222,3.9367098,2540.2,2539.8,8.829]
[1748219361590,3.93665703,2540.3,2539.8,8.829]
[1748219361804,3.93672392,2540.2,2539.8,8.829]
[1748219362312,3.93672392,2540.2,2539.9,8.802]
[1748219362508,3.93671246,2540.2,2539.9,8.802]
[1748219363619,3.93655264,2540.3,2539.9,8.802]
[1748219363924,3.9365459,2540.3,2539.9,8.802]
[1748219364078,0.7829,2540.4,2539.9,10.62711098]
[1748219364284,0.7829,2540.4,2539.9,10.62711277]
[1748219364714,0.7829,2540.4,2539.9,10.62711389]
[1748219365119,0.7829,2540.4,2540.0,0.78739779]
[1748219365421,0.7829,2540.4,2540.1,0.78736459]
[1748219365579,0.7829,2540.4,2540.2,0.78733551]
[1748219365779,0.7829,2540.4,2540.3,3.93]
[1748219367021,4.73939217,2540.7,2540.3,3.93]
[1748219367706,4.73939004,2540.7,2540.3,3.93]
[1748219368541,0.8034,2540.7,2540.3,3.93]
[1748219368704,4.7394392,2540.7,2540.3,3.93]
[1748219369144,3.93609412,2540.6,2540.3,3.93]
[1748219369640,4.7393871,2540.7,2540.3,3.93]
[1748219371303,4.7393871,2540.7,2540.3,4.71730587]
[1748219371503,4.7394017,2540.7,2540.3,3.93]
[1748219371706,12.00176537,2541.5,2540.3,4.48046634]
[1748219371939,0.7837,2541.3,2540.4,8.88795964]
[1748219372116,0.7837,2541.3,2540.9,0.78709928]
[1748219372311,0.7837,2541.3,2541.0,9.59007796]
[1748219372839,0.7837,2541.3,2541.1,0.78705813]
[1748219373042,0.7837,2541.3,2541.1,0.78703418]
[1748219373216,0.7837,2541.3,2541.0,8.803]
[1748219373419,0.7837,2541.3,2541.1,0.78705782]
[1748219374018,0.7837,2541.3,2541.2,3.93]
[1748219375843,3.93441118,2541.7,2541.2,3.96934843]
[1748219375844,0.7932,2541.7,2541.2,3.96934843]
[1748219376059,0.7932,2541.7,2541.6,0.78690588]
[1748219376262,0.7932,2541.7,2541.6,3.93]
[1748219376450,0.7932,2541.7,2541.6,4.71690588]
[1748219376648,0.7932,2541.7,2541.6,3.93]
[1748219376960,0.08533,2541.9,2541.6,3.93]
[1748219377161,0.08533,2541.9,2541.8,0.78684396]
[1748219377488,6.21781634,2541.9,2541.8,4.872]
[1748219377668,6.21781634,2541.9,2541.5,3.93]
[1748219377981,6.13248634,2541.6,2541.5,3.93]
[1748219379065,6.13248634,2541.6,2541.5,4.71693684]
[1748219379250,6.21781634,2541.9,2541.5,4.71693684]
[1748219379623,6.21781634,2541.9,2541.5,3.93]
[1748219379823,6.21781634,2541.9,2541.5,4.71690841]
[1748219380638,6.21781634,2541.9,2541.6,0.78690582]
[1748219380847,6.21781634,2541.9,2541.7,0.78685424]
[1748219381059,6.21781634,2541.9,2541.7,0.78685469]
[1748219381377,6.21781634,2541.9,2541.8,0.78684396]
[1748219381768,6.21781634,2541.9,2541.7,0.78686247]
[1748219382538,6.21781634,2541.9,2541.6,0.78689643]
[1748219382777,6.21781634,2541.9,2541.5,4.71691807]
[1748219383080,6.21781634,2541.9,2541.6,0.78689056]
[1748219383452,6.21781634,2541.9,2541.5,4.71692902]
[1748219383663,6.21781634,2541.9,2541.6,0.78689601]
[1748219384186,4.70836851,2541.8,2541.7,8.8]
[1748219386682,0.7741,2541.8,2541.7,8.8]
[1748219390109,0.08533,2541.9,2541.8,0.78684396]
[1748219400418,0.08533,2541.9,2541.8,8.78684396]
[1748219401556,0.08533,2541.9,2541.8,9.33684396]
[1748219401830,3.05970799,2543.1,2542.8,0.78653452]
[1748219401990,3.05970799,2543.1,2542.8,9.45053452]
[1748219403703,3.15970799,2542.9,2542.4,8.0]
[1748219404008,0.1,2542.9,2542.8,4.736]
[1748219404204,0.1,2542.9,2542.8,8.664]
[1748219404404,0.1,2542.9,2542.6,0.78657198]
[1748219404737,0.1,2542.9,2542.7,8.664]
[1748219405045,0.1,2542.9,2542.8,0.78653452]
[1748219406148,0.1,2542.9,2542.8,9.57183452]
[1748219409450,0.1,2542.9,2542.8,4.735]
[1748219409650,0.1,2542.9,2542.8,8.662]
[1748219410151,3.93298198,2542.6,2542.1,1.62573463]
[1748219410321,0.8299,2542.5,2542.2,8.662]
[1748219410522,0.8299,2542.5,2542.4,0.78665827]
[1748219410835,3.93285258,2542.7,2542.1,0.24124933]
[1748219411035,10.05015683,2542.5,2542.2,8.662]
[1748219411245,6.11699749,2542.5,2542.3,3.927]
[1748219411833,10.0501433,2542.5,2542.3,3.927]
[1748219412162,10.0501433,2542.5,2542.0,0.786774]
[1748219412364,10.0505983,2542.2,2542.1,4.735]
[1748219412662,0.8365,2542.4,2542.1,4.735]
[1748219412856,4.76990901,2542.4,2542.1,4.735]
[1748219413015,0.8365,2542.4,2542.1,4.735]
[1748219413219,3.93344832,2542.3,2542.1,4.735]
[1748219413536,4.76986547,2542.4,2542.1,4.735]
[1748219413935,3.93360081,2542.2,2542.1,4.735]
[1748219414130,3.93350314,2542.3,2542.1,8.662]
[1748219414350,3.93360081,2542.2,2542.1,8.662]
[1748219414665,10.05065389,2542.2,2542.1,8.662]
[1748219416168,6.11699749,2542.2,2542.1,3.927]
[1748219416322,3.93375555,2542.1,2542.0,4.735]
[1748219416522,3.93375555,2542.1,2542.0,8.662]
[1748219417831,10.05067928,2542.2,2542.0,8.662]
[1748219418033,6.11699749,2542.2,2542.0,8.662]
[1748219418334,4.29803661,2542.7,2542.0,10.3401]
[1748219418672,3.93310587,2542.6,2542.1,0.7867492]
[1748219419218,3.93310587,2542.6,2542.0,8.662]
[1748219419423,3.93310587,2542.6,2542.1,0.78672413]
[1748219420376,3.93285911,2542.7,2542.2,0.78669183]
[1748219420528,3.93285911,2542.7,2542.3,3.927]
[1748219420728,3.93301652,2542.6,2542.3,3.927]
[1748219420929,3.93298198,2542.6,2542.4,3.927]
[1748219421127,3.93291343,2542.7,2542.4,3.927]
[1748219421438,10.85363927,2542.8,2542.4,3.927]
[1748219421737,6.11699749,2542.8,2542.4,3.927]
[1748219421927,0.1,2542.9,2542.4,4.39862]
[1748219422132,0.1,2542.9,2542.5,0.78660249]
[1748219422535,0.1,2542.9,2542.6,0.78659165]
[1748219422869,0.1,2542.9,2542.8,0.78653452]
[1748219423051,0.1,2542.9,2542.8,4.735]
[1748219423456,4.03251799,2542.9,2542.8,4.735]
[1748219424267,0.1,2542.9,2542.8,4.735]
[1748219424579,0.1,2542.9,2542.8,5.52153452]
[1748219424732,0.1,2542.9,2542.8,7.23265617]
[1748219425061,0.1,2542.9,2542.8,7.19333452]
[1748219428059,0.1,2542.9,2542.8,7.74333452]
[1748219428956,0.1,2542.9,2542.8,13.75333452]
[1748219433584,0.1,2542.9,2542.8,22.62172052]
[1748219434984,0.1,2542.9,2542.8,30.62172052]
[1748219437380,0.1,2542.9,2542.8,24.61172052]
[1748219437796,0.1,2542.9,2542.8,19.87672052]
[1748219438000,0.1,2542.9,2542.8,27.52533452]
[1748219440605,0.1,2542.9,2542.8,9.3472]
[1748219440810,0.9418,2542.9,2542.8,17.066]
[1748219440976,0.9418,2542.9,2542.8,17.85253452]
[1748219441186,0.1,2542.9,2542.8,17.85253452]
[1748219441480,0.1,2542.9,2542.8,20.52164386]
[1748219442083,0.1,2542.9,2542.8,17.85253452]
[1748219443713,0.1,2542.9,2542.8,9.26753452]
[1748219443882,0.1,2542.9,2542.8,17.85253452]
[1748219444671,0.1,2542.9,2542.8,17.066]
[1748219444893,0.1,2542.9,2542.8,13.14]
[1748219445114,0.1,2542.9,2542.8,17.066]
[1748219445516,0.1,2542.9,2542.8,17.85253452]
[1748219446632,0.1,2542.9,2542.8,17.066]
[1748219447138,0.1,2542.9,2542.8,8.481]
[1748219447288,6.21699749,2542.9,2542.8,17.067]
[1748219447806,0.1,2542.9,2542.8,17.85353452]
[1748219449508,0.1,2542.9,2542.8,17.067]
[1748219450227,10.14951548,2542.9,2542.8,17.067]
[1748219450946,10.14951548,2542.9,2542.8,8.481]
[1748219451268,10.14951548,2542.9,2542.8,12.407]
[1748219451546,3.93308049,2542.6,2542.4,4.66]
[1748219451724,10.84311586,2542.5,2542.4,4.66]
[1748219453227,3.93329137,2542.4,2542.0,0.78677564]
[1748219453427,3.93345557,2542.3,2542.1,8.586]
[1748219453824,3.93345557,2542.3,2542.1,4.66]
[1748219454028,3.93345557,2542.3,2542.2,3.926]
[1748219454328,3.93337033,2542.4,2542.2,3.926]
[1748219455350,3.93344609,2542.3,2542.2,3.926]
[1748219455651,13.19915615,2542.5,2542.2,3.927]
[1748219456149,3.93344609,2542.3,2542.2,3.927]
[1748219456452,3.93333601,2542.4,2542.2,3.927]
[1748219456825,13.19915615,2542.5,2542.2,3.927]
[1748219456826,3.93344609,2542.3,2542.2,3.927]
[1748219457324,3.93360081,2542.2,2542.1,4.66]
[1748219457527,3.93354553,2542.3,2542.1,8.587]
[1748219458118,3.93362158,2542.2,2541.8,0.78681708]
[1748219458342,3.93362158,2542.2,2542.1,4.561]
[1748219458650,3.93362158,2542.2,2541.7,0.78686022]
[1748219458859,3.93362158,2542.2,2541.8,4.561]
[1748219458860,4.73940777,2542.1,2541.8,4.561]
[1748219459149,4.73932116,2542.1,2541.8,8.488]
[1748219459351,0.8055,2542.1,2541.8,8.488]
[1748219459542,0.8055,2542.1,2541.8,9.27483709]
[1748219460142,0.8055,2542.1,2541.9,3.927]
[1748219460520,4.73929957,2542.1,2541.9,3.927]
[1748219460746,0.8055,2542.1,2541.9,3.927]
[1748219461749,0.8055,2542.1,2541.8,0.78683991]
[1748219462054,0.8055,2542.1,2541.9,3.927]
[1748219463954,2.356,2542.0,2541.7,4.561]
[1748219464117,10.05106255,2541.9,2541.8,3.927]
[1748219465443,10.05106255,2541.9,2541.5,8.481]
[1748219465646,10.05106255,2541.9,2541.7,4.562]
[1748219465849,10.05106255,2541.9,2541.8,3.927]
[1748219466047,0.8055,2542.1,2541.8,3.927]
[1748219466247,6.94969749,2542.5,2542.1,0.78673064]
[1748219466451,6.94969749,2542.5,2542.2,3.927]
[1748219466642,10.88286705,2542.5,2542.2,3.927]
[1748219466838,3.93329577,2542.4,2542.2,3.927]
[1748219467240,13.23885102,2542.5,2542.2,3.927]
[1748219467642,3.9332976,2542.4,2542.2,3.927]
[1748219469165,13.23889905,2542.5,2542.2,3.927]
[1748219469828,9.30569749,2542.5,2542.2,3.927]
[1748219470252,13.2388999,2542.5,2542.2,3.927]
[1748219470571,3.93330183,2542.4,2542.2,3.927]
[1748219471467,3.93330183,2542.4,2542.0,0.78677187]
[1748219471765,3.93330183,2542.4,2542.1,3.928]
[1748219473429,3.93330183,2542.4,2541.8,1.58833536]
[1748219473781,3.93330183,2542.4,2541.9,3.928]
[1748219473958,3.060264,2542.0,2541.9,3.928]
[1748219474357,3.060264,2542.0,2538.2,32.04154724]
[1748219474358,3.820964,2542.0,2541.5,8.481]
[1748219474675,3.060264,2541.6,2541.5,13.82992471]
[1748219474854,3.060264,2541.8,2541.7,0.78687492]
[1748219475084,3.060264,2542.0,2541.8,0.78684396]
[1748219475681,3.060264,2542.0,2541.7,4.71486278]
[1748219475861,3.060264,2542.0,2541.7,0.78686278]
[1748219476061,3.93376743,2542.1,2541.8,8.49]
[1748219476263,3.060264,2541.9,2541.8,8.49]
[1748219478688,3.060264,2541.9,2541.8,4.562]
[1748219478982,3.060264,2541.9,2541.8,8.49]
[1748219479171,3.060264,2541.9,2541.5,8.481]
[1748219479172,3.934259,2541.8,2541.7,4.562]
[1748219479357,3.934259,2541.8,2541.7,8.49]
[1748219479679,3.934259,2541.8,2541.5,8.481]
[1748219479887,3.93415886,2541.9,2541.7,8.49]
[1748219480187,3.060264,2541.8,2541.7,3.928]
[1748219480747,7.7932933,2541.8,2541.6,3.928]
[1748219480965,3.858964,2541.8,2541.6,3.928]
[1748219481164,7.7931965,2541.8,2541.6,3.928]
[1748219481498,3.93437463,2541.7,2541.6,3.928]
[1748219481702,3.93446514,2541.7,2541.5,13.043]
[1748219482009,5.416264,2541.6,2540.8,8.0]
[1748219482151,3.9353036,2541.1,2541.0,4.562]
[1748219482344,3.060264,2541.1,2541.0,4.562]
[1748219482560,3.060264,2541.5,2541.1,0.78706072]
[1748219482909,3.060264,2541.8,2541.3,0.78696946]
[1748219483091,3.060264,2541.6,2541.4,0.78696215]
[1748219483289,3.060264,2541.6,2541.5,3.928]
[1748219484111,3.9347544,2541.5,2541.2,3.928]
[1748219484308,3.060264,2541.3,2541.2,3.928]
[1748219485098,8.46473298,2542.3,2541.2,4.85570762]
[1748219485281,3.060264,2541.9,2541.3,0.7979]
[1748219485610,3.060264,2541.7,2541.4,0.78695055]
[1748219485914,3.060264,2541.7,2541.5,3.928]
[1748219486206,3.060264,2541.7,2541.3,0.7979]
[1748219486410,3.060264,2541.4,2541.2,0.78702622]
[1748219486578,3.060264,2541.4,2541.1,0.8048]
[1748219486908,3.060264,2541.4,2540.7,0.78718463]
[1748219486909,3.060264,2541.2,2540.9,1.58830953]
[1748219487106,3.060264,2541.2,2541.0,8.425]
[1748219487682,4.77488201,2541.1,2541.0,3.928]
[1748219488097,4.7748036,2541.1,2541.0,3.928]
[1748219488485,4.7748036,2541.1,2540.7,0.78717861]
[1748219488688,3.060264,2541.0,2540.8,8.425]
[1748219489008,3.060264,2541.0,2540.8,4.497]
[1748219489313,6.99580313,2541.0,2540.8,8.425]
[1748219489908,3.93568775,2540.9,2540.7,8.425]
[1748219490072,6.99603226,2540.8,2540.7,8.425]
[1748219490279,6.99603226,2540.8,2540.7,4.497]
[1748219493279,3.93604151,2540.7,2540.2,9.27233901]
[1748219493513,4.7635612,2540.6,2540.3,8.427]
[1748219493717,3.060264,2540.4,2540.3,8.427]
[1748219494013,6.99666326,2540.4,2540.3,4.498]
[1748219494718,3.060264,2540.4,2540.3,4.498]
[1748219494924,3.060264,2540.4,2540.3,5.2852954]
[1748219495216,3.060264,2540.7,2540.5,0.78724285]
[1748219495422,3.060264,2540.7,2540.6,3.929]
[1748219496715,3.060264,2540.7,2540.3,0.78729454]
[1748219496895,3.060264,2540.5,2540.4,8.428]
[1748219497097,3.060264,2540.5,2540.4,9.21527759]
[1748219497421,3.060264,2540.7,2540.5,0.78721914]
[1748219497580,3.060264,2540.7,2540.4,2.55730535]
[1748219497915,3.060264,2540.5,2540.4,5.28627759]
[1748219498211,3.060264,2540.5,2540.4,9.21527759]
[1748219498783,3.060264,2540.7,2540.4,9.21527759]
[1748219498983,3.060264,2540.7,2540.5,0.78723211]
[1748219499317,3.060264,2540.7,2540.4,10.00005901]
[1748219500025,3.060264,2540.7,2540.5,0.78723961]
[1748219500624,0.7777,2541.1,2540.4,9.2128]
[1748219500809,3.060264,2541.0,2540.7,0.78717448]
[1748219501016,3.060264,2541.0,2540.8,3.93]
[1748219501925,6.99577821,2541.0,2540.8,3.93]
[1748219502925,3.93565146,2540.9,2540.5,0.78722887]
[1748219503118,3.93565146,2540.9,2540.8,4.499]
[1748219503308,6.99591546,2540.9,2540.8,4.499]
[1748219503834,6.99591546,2540.9,2540.8,8.429]
[1748219504030,3.93586796,2540.8,2540.6,3.93]
[1748219504227,3.060264,2540.7,2540.6,3.93]
[1748219505221,6.99618717,2540.7,2540.6,3.93]
[1748219505717,3.93607809,2540.6,2540.5,4.499]
[1748219505904,6.99618717,2540.7,2540.5,8.429]
[1748219506109,3.060264,2540.7,2540.5,8.429]
[1748219507554,6.99621011,2540.7,2540.5,8.429]
[1748219507720,6.99621011,2540.7,2540.3,0.78729437]
[1748219508051,3.93594611,2540.7,2540.5,3.93]
[1748219508251,3.93623302,2540.5,2540.4,4.499]
[1748219508550,3.93623302,2540.5,2540.4,8.429]
[1748219508718,4.73065499,2540.6,2540.4,8.429]
[1748219509048,3.060264,2540.5,2540.4,8.429]
[1748219509259,3.060264,2540.5,2540.4,4.499]
[1748219509457,6.99649702,2540.5,2540.4,8.429]
[1748219512879,6.99649702,2540.5,2540.2,8.485]
[1748219512880,3.93643739,2540.4,2540.2,8.485]
[1748219513016,6.99680692,2540.3,2540.2,8.485]
[1748219513222,3.93669789,2540.2,2540.1,0.1]
[1748219513481,4.77439789,2540.2,2540.1,0.1]
[1748219514139,0.8377,2540.2,2540.1,0.1]
[1748219514369,3.060264,2540.5,2540.1,4.03]
[1748219514535,3.060264,2540.5,2540.2,1.1767]
[1748219514743,3.060264,2540.5,2540.3,4.71730162]
[1748219515348,3.060264,2540.5,2540.3,3.93]
[1748219515964,3.060264,2540.5,2540.3,4.71729306]
[1748219516375,3.060264,2540.5,2540.3,3.93]
[1748219516546,2.356,2540.9,2540.3,4.60813873]